[Event "*** Titled Tuesday Blitz"]
[Site "Chess.com"]
[Date "2020.05.12"]
[Round "3"]
[White "Sethu0025"]
[Black "Alomaterapia"]
[Result "0-1"]
[WhiteElo "2739"]
[BlackElo "2474"]
[TimeControl "180+1"]
[EndTime "10:29:21 PDT"]
[Termination "Alomaterapia won on time"]

1. e4 {[%clk 0:03:00.9]} 1... c6 {[%clk 0:03:00.9]} 2. d4 {[%clk 0:03:00.5]}
2... d5 {[%clk 0:03:00.2]} 3. e5 {[%clk 0:03:00.3]} 3... Bf5 {[%clk 0:02:59.4]}
4. Nf3 {[%clk 0:03:00.3]} 4... e6 {[%clk 0:02:58.9]} 5. Be2 {[%clk 0:03:00.6]}
5... Ne7 {[%clk 0:02:58.9]} 6. O-O {[%clk 0:03:00.4]} 6... c5 {[%clk 0:02:59.5]}
7. Na3 {[%clk 0:03:00.1]} 7... Nec6 {[%clk 0:02:56.2]} 8. c4 {[%clk 0:02:54.8]}
8... cxd4 {[%clk 0:02:44.3]} 9. Nb5 {[%clk 0:02:51.7]} 9... d3 {[%clk
0:02:28.2]} 10. Bxd3 {[%clk 0:02:46.7]} 10... Bxd3 {[%clk 0:02:27.6]} 11. Qxd3
{[%clk 0:02:46.2]} 11... Be7 {[%clk 0:02:15.4]} 12. cxd5 {[%clk 0:02:44.8]}
12... exd5 {[%clk 0:02:14.3]} 13. Qxd5 {[%clk 0:02:42.6]} 13... O-O {[%clk
0:02:11.9]} 14. Qxd8 {[%clk 0:02:40.8]} 14... Bxd8 {[%clk 0:02:12.8]} 15. Bf4
{[%clk 0:02:35.8]} 15... Na6 {[%clk 0:02:13.3]} 16. Rac1 {[%clk 0:02:32.3]}
16... Bb6 {[%clk 0:02:08.8]} 17. Nd6 {[%clk 0:02:29.5]} 17... Nc5 {[%clk
0:02:09.1]} 18. Rfd1 {[%clk 0:02:27.8]} 18... Ne6 {[%clk 0:02:04.6]} 19. Bg3
{[%clk 0:02:24.9]} 19... Ncd4 {[%clk 0:01:53.4]} 20. Nxd4 {[%clk 0:02:20.5]}
20... Bxd4 {[%clk 0:01:53.3]} 21. Rc2 {[%clk 0:02:15.6]} 21... b6 {[%clk
0:01:49.7]} 22. Kf1 {[%clk 0:02:10.7]} 22... h5 {[%clk 0:01:40.6]} 23. h4 {[%clk
0:02:09.7]} 23... g6 {[%clk 0:01:35.9]} 24. b4 {[%clk 0:02:01.6]} 24... a5
{[%clk 0:01:35.4]} 25. b5 {[%clk 0:02:00.9]} 25... a4 {[%clk 0:01:33.8]} 26. Rc4
{[%clk 0:01:58.3]} 26... Bc5 {[%clk 0:01:32.7]} 27. f4 {[%clk 0:01:49.1]} 27...
Ra5 {[%clk 0:01:21.9]} 28. Rb1 {[%clk 0:01:01.6]} 28... Rb8 {[%clk 0:00:39.1]}
29. Bf2 {[%clk 0:00:58.6]} 29... a3 {[%clk 0:00:37.1]} 30. g3 {[%clk 0:00:54.9]}
30... Ra7 {[%clk 0:00:31.2]} 31. Ne4 {[%clk 0:00:52.4]} 31... Bxf2 {[%clk
0:00:29]} 32. Kxf2 {[%clk 0:00:53.3]} 32... Ra5 {[%clk 0:00:25.9]} 33. Nd6
{[%clk 0:00:39.6]} 33... Nc5 {[%clk 0:00:26]} 34. Ke3 {[%clk 0:00:39.5]} 34...
Rba8 {[%clk 0:00:26]} 35. Kd4 {[%clk 0:00:38]} 35... Ra4 {[%clk 0:00:26.3]} 36.
Rbb4 {[%clk 0:00:36.3]} 36... R4a7 {[%clk 0:00:25.7]} 37. Kd5 {[%clk 0:00:34.7]}
37... Ne6 {[%clk 0:00:23.4]} 38. Rc6 {[%clk 0:00:32.4]} 38... Rb8 {[%clk
0:00:20.4]} 39. Rbc4 {[%clk 0:00:28.4]} 39... Ra5 {[%clk 0:00:18.6]} 40. Rc8+
{[%clk 0:00:28.1]} 40... Rxc8 {[%clk 0:00:18.9]} 41. Rxc8+ {[%clk 0:00:29]}
41... Kg7 {[%clk 0:00:19.5]} 42. Ne8+ {[%clk 0:00:26.1]} 42... Kh6 {[%clk
0:00:19.9]} 43. Kc4 {[%clk 0:00:17]} 43... Ra4+ {[%clk 0:00:18.6]} 44. Kb3
{[%clk 0:00:17.2]} 44... Re4 {[%clk 0:00:16.5]} 45. Nf6 {[%clk 0:00:16.1]} 45...
Re3+ {[%clk 0:00:16.7]} 46. Kc4 {[%clk 0:00:16]} 46... Rxg3 {[%clk 0:00:15.2]}
47. Rh8+ {[%clk 0:00:13.3]} 47... Kg7 {[%clk 0:00:15.6]} 48. Rg8+ {[%clk
0:00:12.4]} 48... Kh6 {[%clk 0:00:16]} 49. f5 {[%clk 0:00:08.2]} 49... Rg4+
{[%clk 0:00:15.3]} 50. Kd5 {[%clk 0:00:07.5]} 50... gxf5 {[%clk 0:00:14.7]} 51.
Rh8+ {[%clk 0:00:07]} 51... Kg7 {[%clk 0:00:14.7]} 52. Rg8+ {[%clk 0:00:06.9]}
52... Kh6 {[%clk 0:00:15.2]} 53. Nxg4+ {[%clk 0:00:07.1]} 53... hxg4 {[%clk
0:00:15.4]} 54. Rh8+ {[%clk 0:00:04.2]} 54... Kg7 {[%clk 0:00:14.9]} 55. Rc8
{[%clk 0:00:03.3]} 55... g3 {[%clk 0:00:15.3]} 56. Rc3 {[%clk 0:00:02.2]} 56...
f4 {[%clk 0:00:12.9]} 57. Ke4 {[%clk 0:00:02.4]} 57... Kg6 {[%clk 0:00:13.2]}
58. Kf3 {[%clk 0:00:01.8]} 58... Kh5 {[%clk 0:00:12.6]} 0-1

[Event "*** Titled Tuesday Blitz"]
[Site "Chess.com"]
[Date "2020.05.12"]
[Round "3"]
[White "Duong57"]
[Black "WhiteKnight2612"]
[Result "0-1"]
[WhiteElo "2263"]
[BlackElo "2687"]
[TimeControl "180+1"]
[EndTime "10:29:22 PDT"]
[Termination "WhiteKnight2612 won by resignation"]

1. d4 {[%clk 0:03:00.9]} 1... Nf6 {[%clk 0:02:57.6]} 2. c4 {[%clk 0:03:00.7]}
2... e6 {[%clk 0:02:57.3]} 3. Nc3 {[%clk 0:03:00.7]} 3... Be7 {[%clk 0:02:54.9]}
4. e4 {[%clk 0:02:57.6]} 4... d6 {[%clk 0:02:54.7]} 5. Nf3 {[%clk 0:02:49.8]}
5... O-O {[%clk 0:02:54.7]} 6. Bd3 {[%clk 0:02:48.2]} 6... b6 {[%clk 0:02:54.7]}
7. O-O {[%clk 0:02:46.4]} 7... Bb7 {[%clk 0:02:54.5]} 8. Qc2 {[%clk 0:02:37.8]}
8... h6 {[%clk 0:02:52.7]} 9. h3 {[%clk 0:02:36.2]} 9... Nc6 {[%clk 0:02:50.8]}
10. a3 {[%clk 0:02:33.4]} 10... Nd7 {[%clk 0:02:49.9]} 11. Be3 {[%clk
0:02:27.9]} 11... Bf6 {[%clk 0:02:49.5]} 12. Rad1 {[%clk 0:01:56]} 12... Qe7
{[%clk 0:02:45.7]} 13. Rfe1 {[%clk 0:01:50.8]} 13... Rfd8 {[%clk 0:02:33.5]} 14.
Bf1 {[%clk 0:01:48.6]} 14... Qf8 {[%clk 0:02:31.3]} 15. Nh2 {[%clk 0:01:45.8]}
15... e5 {[%clk 0:02:25.8]} 16. d5 {[%clk 0:01:41.4]} 16... Ne7 {[%clk
0:02:25.6]} 17. Ne2 {[%clk 0:01:13.9]} 17... Bg5 {[%clk 0:02:23.9]} 18. Bxg5
{[%clk 0:01:08.4]} 18... hxg5 {[%clk 0:02:24.8]} 19. Ng3 {[%clk 0:01:08.4]}
19... f6 {[%clk 0:02:24.7]} 20. Be2 {[%clk 0:01:05.6]} 20... a5 {[%clk
0:02:11.4]} 21. b4 {[%clk 0:01:04.1]} 21... Bc8 {[%clk 0:02:07.7]} 22. Bg4
{[%clk 0:00:50.5]} 22... g6 {[%clk 0:02:06.3]} 23. Be6+ {[%clk 0:00:48]} 23...
Kh7 {[%clk 0:02:03.9]} 24. Ra1 {[%clk 0:00:42.4]} 24... Qg7 {[%clk 0:02:01.9]}
25. Nf3 {[%clk 0:00:29.6]} 25... Nf8 {[%clk 0:01:48.9]} 26. Bxc8 {[%clk
0:00:27.5]} 26... Rdxc8 {[%clk 0:01:49.1]} 27. c5 {[%clk 0:00:27.6]} 27... Nd7
{[%clk 0:01:47]} 28. c6 {[%clk 0:00:24]} 28... Nf8 {[%clk 0:01:45.4]} 29. Reb1
{[%clk 0:00:23.2]} 29... Qf7 {[%clk 0:01:42.6]} 30. a4 {[%clk 0:00:20.2]} 30...
Kg7 {[%clk 0:01:39.7]} 31. Nd2 {[%clk 0:00:19.6]} 31... f5 {[%clk 0:01:36.7]}
32. f3 {[%clk 0:00:19.9]} 32... g4 {[%clk 0:01:31]} 33. hxg4 {[%clk 0:00:19.5]}
33... fxg4 {[%clk 0:01:30.3]} 34. b5 {[%clk 0:00:16.1]} 34... Qf4 {[%clk
0:01:23.2]} 35. Kf2 {[%clk 0:00:15.6]} 35... Nh7 {[%clk 0:01:17.6]} 36. Qc3
{[%clk 0:00:15.2]} 36... Ng5 {[%clk 0:01:14.3]} 37. Qe3 {[%clk 0:00:15]} 37...
Rf8 {[%clk 0:01:09.2]} 38. Rh1 {[%clk 0:00:11.7]} 38... Rf7 {[%clk 0:00:55.7]}
39. Qxf4 {[%clk 0:00:10.7]} 39... Rxf4 {[%clk 0:00:54.9]} 40. Ne2 {[%clk
0:00:07.8]} 40... Rf6 {[%clk 0:00:54]} 41. Ke3 {[%clk 0:00:07.1]} 41... Raf8
{[%clk 0:00:43.1]} 42. Raf1 {[%clk 0:00:06.2]} 42... Ng8 {[%clk 0:00:42.6]} 43.
f4 {[%clk 0:00:04.2]} 43... Nf7 {[%clk 0:00:42.2]} 44. g3 {[%clk 0:00:02.6]}
44... Ngh6 {[%clk 0:00:38.7]} 45. Rf2 {[%clk 0:00:01.8]} 45... Re8 {[%clk
0:00:37.6]} 46. Rfh2 {[%clk 0:00:01.9]} 46... Re7 {[%clk 0:00:35.5]} 47. Rf2
{[%clk 0:00:02.1]} 47... exf4+ {[%clk 0:00:30.9]} 48. gxf4 {[%clk 0:00:03]}
48... g3 {[%clk 0:00:28.9]} 49. Nxg3 {[%clk 0:00:03.3]} 49... Ng4+ {[%clk
0:00:28.9]} 50. Kf3 {[%clk 0:00:03.4]} 50... Nxf2 {[%clk 0:00:29.8]} 51. Kxf2
{[%clk 0:00:04.3]} 51... Rxf4+ {[%clk 0:00:29.8]} 52. Ke3 {[%clk 0:00:05.2]}
52... Rg4 {[%clk 0:00:29.6]} 53. Kf3 {[%clk 0:00:05.4]} 53... Ne5+ {[%clk
0:00:29.9]} 54. Kf2 {[%clk 0:00:05.5]} 54... Rf7+ {[%clk 0:00:30]} 55. Kg2
{[%clk 0:00:05.8]} 55... Nd3 {[%clk 0:00:29.1]} 56. Rf1 {[%clk 0:00:05.5]} 56...
Rxf1 {[%clk 0:00:27.3]} 57. Nxf1 {[%clk 0:00:05.3]} 57... Rf4 {[%clk 0:00:27.1]}
58. Kg1 {[%clk 0:00:02.8]} 58... Rf2 {[%clk 0:00:25.9]} 59. Nh2 {[%clk
0:00:03.1]} 59... Ra2 {[%clk 0:00:24.5]} 60. Ng4 {[%clk 0:00:03.3]} 60... Rxa4
{[%clk 0:00:20.3]} 61. Ne2 {[%clk 0:00:03.6]} 61... Rxe4 {[%clk 0:00:18.7]} 0-1

[Event "*** Titled Tuesday Blitz"]
[Site "Chess.com"]
[Date "2020.05.12"]
[Round "3"]
[White "InitiatingASC"]
[Black "blitzking1729"]
[Result "1-0"]
[WhiteElo "2323"]
[BlackElo "2512"]
[TimeControl "180+1"]
[EndTime "10:29:24 PDT"]
[Termination "InitiatingASC won by resignation"]

1. d4 {[%clk 0:03:00.9]} 1... d5 {[%clk 0:02:59.9]} 2. c4 {[%clk 0:03:00.3]}
2... e6 {[%clk 0:03:00.2]} 3. Nc3 {[%clk 0:02:58.6]} 3... c5 {[%clk 0:02:59.4]}
4. cxd5 {[%clk 0:02:55.2]} 4... exd5 {[%clk 0:03:00.3]} 5. Nf3 {[%clk
0:02:54.8]} 5... Nc6 {[%clk 0:03:00.5]} 6. g3 {[%clk 0:02:54.3]} 6... Nf6 {[%clk
0:03:00.3]} 7. Bg2 {[%clk 0:02:54.5]} 7... cxd4 {[%clk 0:03:00.5]} 8. Nxd4
{[%clk 0:02:54.1]} 8... Bc5 {[%clk 0:03:00.5]} 9. Nxc6 {[%clk 0:02:49.1]} 9...
bxc6 {[%clk 0:03:00]} 10. O-O {[%clk 0:02:49.2]} 10... O-O {[%clk 0:02:59.9]}
11. Na4 {[%clk 0:02:47.8]} 11... Bb6 {[%clk 0:02:57.2]} 12. b3 {[%clk
0:02:47.6]} 12... h5 {[%clk 0:02:55]} 13. Bb2 {[%clk 0:02:46.2]} 13... h4 {[%clk
0:02:54.5]} 14. Bd4 {[%clk 0:02:41.9]} 14... h3 {[%clk 0:02:49.6]} 15. Bf3
{[%clk 0:02:40.1]} 15... Re8 {[%clk 0:02:48.7]} 16. Rc1 {[%clk 0:02:30.9]} 16...
Bd7 {[%clk 0:02:46]} 17. Qd3 {[%clk 0:02:23.5]} 17... Rb8 {[%clk 0:02:34.3]} 18.
Rfd1 {[%clk 0:02:20.8]} 18... Qe7 {[%clk 0:02:31.9]} 19. Nc5 {[%clk 0:02:12.6]}
19... Bg4 {[%clk 0:02:29.9]} 20. Bxf6 {[%clk 0:02:06.1]} 20... gxf6 {[%clk
0:02:20.4]} 21. Bxg4 {[%clk 0:01:56.4]} 21... Bxc5 {[%clk 0:02:20.1]} 22. e3
{[%clk 0:01:49.2]} 22... Rbd8 {[%clk 0:02:12.3]} 23. Bxh3 {[%clk 0:01:47.8]}
23... d4 {[%clk 0:02:08]} 24. Qc4 {[%clk 0:01:39.2]} 24... Ba3 {[%clk
0:02:03.6]} 25. Rc2 {[%clk 0:01:26.6]} 25... dxe3 {[%clk 0:02:01.7]} 26. Rxd8
{[%clk 0:01:12.5]} 26... Rxd8 {[%clk 0:01:27.1]} 27. Qg4+ {[%clk 0:01:07.2]}
27... Kf8 {[%clk 0:01:23]} 28. Re2 {[%clk 0:00:57.4]} 28... exf2+ {[%clk
0:01:19.4]} 29. Kxf2 {[%clk 0:00:54.6]} 29... Qc5+ {[%clk 0:00:58.9]} 30. Kg2
{[%clk 0:00:48.3]} 30... Qd5+ {[%clk 0:00:57.1]} 31. Qf3 {[%clk 0:00:43.4]}
31... Bb4 {[%clk 0:00:45.8]} 32. Qxd5 {[%clk 0:00:35.3]} 32... cxd5 {[%clk
0:00:44.1]} 33. Bf5 {[%clk 0:00:35.3]} 33... d4 {[%clk 0:00:36.3]} 34. Bd3
{[%clk 0:00:33.5]} 34... Rc8 {[%clk 0:00:26.1]} 35. Rc2 {[%clk 0:00:32.5]} 35...
Rxc2+ {[%clk 0:00:21.8]} 36. Bxc2 {[%clk 0:00:32.2]} 36... a5 {[%clk 0:00:21.9]}
37. Kf3 {[%clk 0:00:31.8]} 37... Kg7 {[%clk 0:00:22]} 38. Ke4 {[%clk 0:00:31.6]}
38... Bc3 {[%clk 0:00:19.5]} 39. Kf5 {[%clk 0:00:28.8]} 39... Bb4 {[%clk
0:00:18.7]} 40. Bd3 {[%clk 0:00:28.4]} 40... Bc3 {[%clk 0:00:18.4]} 41. h4
{[%clk 0:00:28.2]} 41... Be1 {[%clk 0:00:18]} 42. Kg4 {[%clk 0:00:25.7]} 42...
Bb4 {[%clk 0:00:17.4]} 43. h5 {[%clk 0:00:23.5]} 43... Bd6 {[%clk 0:00:17]} 44.
Kf3 {[%clk 0:00:22.6]} 44... Kh6 {[%clk 0:00:16.8]} 45. g4 {[%clk 0:00:23]}
45... Kg5 {[%clk 0:00:16.6]} 46. Bf5 {[%clk 0:00:23.2]} 46... Bb4 {[%clk
0:00:16.3]} 47. Ke4 {[%clk 0:00:23.2]} 47... Bc3 {[%clk 0:00:16.1]} 48. Kd3
{[%clk 0:00:22.8]} 48... Kh6 {[%clk 0:00:14.5]} 49. Kc4 {[%clk 0:00:22.6]} 49...
Bb2 {[%clk 0:00:13.4]} 50. Kb5 {[%clk 0:00:20.9]} 50... Bc3 {[%clk 0:00:13.2]}
51. a3 {[%clk 0:00:21.1]} 51... Kg5 {[%clk 0:00:11.3]} 52. b4 {[%clk 0:00:21]}
52... axb4 {[%clk 0:00:10.7]} 53. axb4 {[%clk 0:00:20.9]} 53... d3 {[%clk
0:00:11.1]} 54. Bxd3 {[%clk 0:00:19.2]} 54... Kxg4 {[%clk 0:00:11.3]} 55. h6
{[%clk 0:00:19.7]} 55... f5 {[%clk 0:00:11.2]} 56. h7 {[%clk 0:00:19.3]} 56...
Kg5 {[%clk 0:00:10.9]} 57. Kc4 {[%clk 0:00:19.6]} 57... Be5 {[%clk 0:00:09.8]}
58. Kd5 {[%clk 0:00:19.2]} 58... Bb2 {[%clk 0:00:07.8]} 59. b5 {[%clk
0:00:19.4]} 59... Kg6 {[%clk 0:00:07.9]} 60. b6 {[%clk 0:00:19]} 60... Kxh7
{[%clk 0:00:05.3]} 61. b7 {[%clk 0:00:18.8]} 1-0

[Event "*** Titled Tuesday Blitz"]
[Site "Chess.com"]
[Date "2020.05.12"]
[Round "3"]
[White "DonBroca"]
[Black "Muguet7"]
[Result "1/2-1/2"]
[WhiteElo "2233"]
[BlackElo "2470"]
[TimeControl "180+1"]
[EndTime "10:29:24 PDT"]
[Termination "Game drawn by agreement"]

1. e4 {[%clk 0:02:50.7]} 1... c5 {[%clk 0:02:59.6]} 2. d4 {[%clk 0:02:47.9]}
2... cxd4 {[%clk 0:02:59.3]} 3. c3 {[%clk 0:02:48.8]} 3... Nf6 {[%clk
0:02:58.4]} 4. e5 {[%clk 0:02:48.2]} 4... Nd5 {[%clk 0:02:58.5]} 5. Nf3 {[%clk
0:02:49.1]} 5... e6 {[%clk 0:02:58.4]} 6. Bc4 {[%clk 0:02:49.2]} 6... d6 {[%clk
0:02:57.4]} 7. O-O {[%clk 0:02:37.6]} 7... Be7 {[%clk 0:02:56.9]} 8. Bxd5 {[%clk
0:02:37.2]} 8... exd5 {[%clk 0:02:56.6]} 9. cxd4 {[%clk 0:02:37.7]} 9... O-O
{[%clk 0:02:53.4]} 10. Nc3 {[%clk 0:02:36.6]} 10... Be6 {[%clk 0:02:52.2]} 11.
Re1 {[%clk 0:02:34.2]} 11... Nc6 {[%clk 0:02:50.7]} 12. Bf4 {[%clk 0:02:34.2]}
12... dxe5 {[%clk 0:02:47]} 13. Nxe5 {[%clk 0:02:30.3]} 13... Rc8 {[%clk
0:02:44.4]} 14. Rc1 {[%clk 0:02:26.7]} 14... Qb6 {[%clk 0:02:43.3]} 15. Nxc6
{[%clk 0:02:20.2]} 15... bxc6 {[%clk 0:02:35.5]} 16. Qd2 {[%clk 0:02:13.8]}
16... Bf6 {[%clk 0:02:33.5]} 17. Be5 {[%clk 0:02:11.7]} 17... Bxe5 {[%clk
0:02:31.3]} 18. Rxe5 {[%clk 0:02:11.6]} 18... c5 {[%clk 0:02:28.8]} 19. Na4
{[%clk 0:02:07.3]} 19... Qb4 {[%clk 0:02:22.1]} 20. Qxb4 {[%clk 0:02:03.3]}
20... cxb4 {[%clk 0:02:22.1]} 21. Nc5 {[%clk 0:02:03.3]} 21... Rc6 {[%clk
0:02:21.4]} 22. Rce1 {[%clk 0:01:58.8]} 22... Rd8 {[%clk 0:02:12.6]} 23. f4
{[%clk 0:01:43.3]} 23... g6 {[%clk 0:01:57.9]} 24. Nxe6 {[%clk 0:01:40.9]} 24...
fxe6 {[%clk 0:01:57.5]} 25. Rxe6 {[%clk 0:01:41.4]} 25... Rc2 {[%clk 0:01:53]}
26. R1e2 {[%clk 0:01:40.6]} 26... Rdc8 {[%clk 0:01:47.7]} 27. Kf2 {[%clk
0:01:32.2]} 27... R8c4 {[%clk 0:01:47]} 28. Rxc2 {[%clk 0:01:27.5]} 28... Rxc2+
{[%clk 0:01:46.4]} 29. Re2 {[%clk 0:01:27.9]} 29... Rc4 {[%clk 0:01:46.1]} 30.
Ke3 {[%clk 0:01:27.6]} 30... Kf7 {[%clk 0:01:45.7]} 31. Kd3 {[%clk 0:01:25.6]}
31... Kf6 {[%clk 0:01:39.5]} 32. g4 {[%clk 0:01:17.9]} 32... Rc1 {[%clk
0:01:34.8]} 33. Re5 {[%clk 0:01:14.4]} 33... Rd1+ {[%clk 0:01:32.2]} 34. Ke3
{[%clk 0:01:09.8]} 34... Rb1 {[%clk 0:01:31.6]} 35. Rxd5 {[%clk 0:01:07.4]}
35... Rxb2 {[%clk 0:01:31.8]} 36. Rd6+ {[%clk 0:01:07.1]} 36... Kg7 {[%clk
0:01:16.8]} 37. Ra6 {[%clk 0:01:07.2]} 37... Rxh2 {[%clk 0:01:16.4]} 38. Rxa7+
{[%clk 0:01:04.4]} 38... Kf6 {[%clk 0:01:16]} 39. Ra6+ {[%clk 0:01:02.4]} 39...
Ke7 {[%clk 0:01:14.1]} 40. Ke4 {[%clk 0:01:02]} 40... Re2+ {[%clk 0:00:59.7]}
41. Kd5 {[%clk 0:01:00.2]} 41... Rf2 {[%clk 0:00:59.9]} 42. Ke4 {[%clk
0:00:47.2]} 42... Re2+ {[%clk 0:00:52.5]} 43. Kf3 {[%clk 0:00:47.1]} 43... Rh2
{[%clk 0:00:50.9]} 44. Rb6 {[%clk 0:00:42]} 44... Rxa2 {[%clk 0:00:48.8]} 45.
Rxb4 {[%clk 0:00:42.2]} 45... Ra7 {[%clk 0:00:46.9]} 46. Ke4 {[%clk 0:00:41.7]}
46... Kf7 {[%clk 0:00:46.7]} 47. Rb6 {[%clk 0:00:39.4]} 47... Re7+ {[%clk
0:00:45]} 48. Kf3 {[%clk 0:00:36.9]} 48... Rd7 {[%clk 0:00:40.5]} 49. Ke4 {[%clk
0:00:36.5]} 49... Re7+ {[%clk 0:00:40.8]} 50. Kd3 {[%clk 0:00:36.5]} 50... Kg7
{[%clk 0:00:39.5]} 51. d5 {[%clk 0:00:36.4]} 51... h5 {[%clk 0:00:39.5]} 52.
gxh5 {[%clk 0:00:28.5]} 52... gxh5 {[%clk 0:00:39.6]} 53. d6 {[%clk 0:00:28.3]}
53... Re1 {[%clk 0:00:36.9]} 54. Rb7+ {[%clk 0:00:23.2]} 54... Kf6 {[%clk
0:00:36.5]} 55. Kd2 {[%clk 0:00:15.2]} 55... Re4 {[%clk 0:00:33.8]} 56. d7
{[%clk 0:00:14.9]} 56... Ke7 {[%clk 0:00:29.7]} 57. Kd3 {[%clk 0:00:13.5]} 57...
Rxf4 {[%clk 0:00:29]} 58. d8=Q+ {[%clk 0:00:13.8]} 58... Kxd8 {[%clk 0:00:28.9]}
59. Rh7 {[%clk 0:00:14.2]} 59... Rh4 {[%clk 0:00:27.1]} 60. Ke3 {[%clk
0:00:14.4]} 60... Ke8 {[%clk 0:00:27.3]} 61. Kf3 {[%clk 0:00:14.3]} 61... Kf8
{[%clk 0:00:27.5]} 62. Kg3 {[%clk 0:00:13.2]} 62... Rh1 {[%clk 0:00:27.5]} 63.
Kg2 {[%clk 0:00:13.1]} 63... Rh4 {[%clk 0:00:27.7]} 64. Kg3 {[%clk 0:00:13.1]}
64... Rg4+ {[%clk 0:00:27.9]} 65. Kh3 {[%clk 0:00:13.1]} 65... Rg5 {[%clk
0:00:25.5]} 66. Kh4 {[%clk 0:00:12.9]} 66... Rg1 {[%clk 0:00:20.4]} 67. Rxh5
{[%clk 0:00:11.7]} 67... Kf7 {[%clk 0:00:20.5]} 68. Rb5 {[%clk 0:00:10.2]} 68...
Kg6 {[%clk 0:00:20.1]} 69. Rb6+ {[%clk 0:00:09.7]} 69... Kf5 {[%clk 0:00:20.1]}
70. Rb5+ {[%clk 0:00:10.1]} 70... Kf4 {[%clk 0:00:20.3]} 71. Rb4+ {[%clk
0:00:10.7]} 71... Kf5 {[%clk 0:00:20.6]} 72. Rb5+ {[%clk 0:00:10.8]} 72... Kf4
{[%clk 0:00:19.9]} 1/2-1/2

[Event "*** Titled Tuesday Blitz"]
[Site "Chess.com"]
[Date "2020.05.12"]
[Round "3"]
[White "DanielDardha2005"]
[Black "Kostya26"]
[Result "1-0"]
[WhiteElo "2610"]
[BlackElo "2396"]
[TimeControl "180+1"]
[EndTime "10:29:25 PDT"]
[Termination "DanielDardha2005 won by resignation"]

1. Nf3 {[%clk 0:03:00.9]} 1... d5 {[%clk 0:02:57.3]} 2. c4 {[%clk 0:02:59]} 2...
e6 {[%clk 0:02:53.7]} 3. d4 {[%clk 0:02:57.6]} 3... Nf6 {[%clk 0:02:54]} 4. Nc3
{[%clk 0:02:57.6]} 4... c6 {[%clk 0:02:53.9]} 5. Bg5 {[%clk 0:02:57.9]} 5...
Nbd7 {[%clk 0:02:50.6]} 6. e3 {[%clk 0:02:57.8]} 6... Qa5 {[%clk 0:02:50.5]} 7.
Nd2 {[%clk 0:02:56.5]} 7... Bb4 {[%clk 0:02:47.8]} 8. Qc2 {[%clk 0:02:52.2]}
8... c5 {[%clk 0:02:43.9]} 9. dxc5 {[%clk 0:02:44.8]} 9... Qxc5 {[%clk
0:02:13.1]} 10. Bxf6 {[%clk 0:02:26.4]} 10... Nxf6 {[%clk 0:02:11.4]} 11. a3
{[%clk 0:02:25.1]} 11... Bxc3 {[%clk 0:02:08.9]} 12. Qxc3 {[%clk 0:02:26]} 12...
O-O {[%clk 0:02:07]} 13. Be2 {[%clk 0:02:23.4]} 13... b6 {[%clk 0:02:04.3]} 14.
O-O {[%clk 0:02:16.6]} 14... Bb7 {[%clk 0:02:03.7]} 15. b4 {[%clk 0:02:16.1]}
15... Qe7 {[%clk 0:01:53.3]} 16. cxd5 {[%clk 0:02:14.9]} 16... Nxd5 {[%clk
0:01:52.7]} 17. Qb2 {[%clk 0:02:15.4]} 17... Rfd8 {[%clk 0:01:46.1]} 18. Rfd1
{[%clk 0:02:08.9]} 18... Qg5 {[%clk 0:01:24.1]} 19. Bf3 {[%clk 0:02:07.8]} 19...
Rac8 {[%clk 0:01:17.2]} 20. Rac1 {[%clk 0:02:02.9]} 20... h6 {[%clk 0:00:56.2]}
21. Rxc8 {[%clk 0:01:52.3]} 21... Rxc8 {[%clk 0:00:54.3]} 22. Rc1 {[%clk
0:01:53.2]} 22... Qd8 {[%clk 0:00:46.8]} 23. g3 {[%clk 0:01:46.5]} 23... Rc7
{[%clk 0:00:39.1]} 24. Nb3 {[%clk 0:01:26.8]} 24... Qc8 {[%clk 0:00:31.8]} 25.
Rxc7 {[%clk 0:01:25.6]} 25... Qxc7 {[%clk 0:00:32.7]} 26. Qc1 {[%clk 0:01:24.1]}
26... Qxc1+ {[%clk 0:00:31.7]} 27. Nxc1 {[%clk 0:01:25]} 27... Kf8 {[%clk
0:00:31.8]} 28. Bg2 {[%clk 0:01:15.1]} 28... Ke7 {[%clk 0:00:31]} 29. Kf1 {[%clk
0:01:10.7]} 29... Kd6 {[%clk 0:00:26.7]} 30. Ke1 {[%clk 0:00:58.8]} 30... a5
{[%clk 0:00:24.6]} 31. Kd2 {[%clk 0:00:44.6]} 31... axb4 {[%clk 0:00:23.5]} 32.
axb4 {[%clk 0:00:45.5]} 32... Bc6 {[%clk 0:00:22.2]} 33. Bxd5 {[%clk 0:00:30.5]}
33... Bxd5 {[%clk 0:00:20.5]} 34. Kd3 {[%clk 0:00:28.3]} 34... Kc6 {[%clk
0:00:19.9]} 35. e4 {[%clk 0:00:27]} 35... Bxe4+ {[%clk 0:00:16.2]} 36. Kxe4
{[%clk 0:00:26.3]} 36... Kb5 {[%clk 0:00:17.1]} 37. Nd3 {[%clk 0:00:26.6]} 37...
Kc4 {[%clk 0:00:15.9]} 38. f4 {[%clk 0:00:24.2]} 38... f6 {[%clk 0:00:14.7]} 39.
g4 {[%clk 0:00:23.2]} 39... g6 {[%clk 0:00:13.2]} 40. h4 {[%clk 0:00:21.9]}
40... b5 {[%clk 0:00:13]} 41. Nc5 {[%clk 0:00:18.8]} 41... Kxb4 {[%clk
0:00:09.8]} 42. Nxe6 {[%clk 0:00:18.8]} 42... Kc4 {[%clk 0:00:10.2]} 43. g5
{[%clk 0:00:10.8]} 43... fxg5 {[%clk 0:00:09.3]} 44. h5 {[%clk 0:00:10]} 44...
gxh5 {[%clk 0:00:08.3]} 45. f5 {[%clk 0:00:10.6]} 45... b4 {[%clk 0:00:06.8]}
46. Nd4 {[%clk 0:00:07.5]} 46... h4 {[%clk 0:00:05.3]} 47. f6 {[%clk 0:00:07.1]}
47... h3 {[%clk 0:00:05.7]} 48. Kf3 {[%clk 0:00:07.2]} 48... Kxd4 {[%clk
0:00:03.9]} 49. f7 {[%clk 0:00:07.5]} 49... b3 {[%clk 0:00:04.4]} 50. f8=Q
{[%clk 0:00:07.6]} 50... Kc3 {[%clk 0:00:05.3]} 51. Qc5+ {[%clk 0:00:07.2]}
51... Kd2 {[%clk 0:00:05.1]} 52. Qb4+ {[%clk 0:00:06.6]} 52... Kc2 {[%clk
0:00:05.3]} 53. Qc4+ {[%clk 0:00:07]} 53... Kb2 {[%clk 0:00:05.8]} 54. Kg3
{[%clk 0:00:07.4]} 54... Ka3 {[%clk 0:00:05]} 55. Kxh3 {[%clk 0:00:07.8]} 55...
b2 {[%clk 0:00:05.3]} 56. Qc2 {[%clk 0:00:06.8]} 56... Ka2 {[%clk 0:00:05.5]}
57. Kg4 {[%clk 0:00:06.5]} 57... Ka1 {[%clk 0:00:05.7]} 58. Qa4+ {[%clk
0:00:05.2]} 58... Kb1 {[%clk 0:00:06.6]} 59. Kf3 {[%clk 0:00:06.1]} 59... Kc1
{[%clk 0:00:06.8]} 60. Qc4+ {[%clk 0:00:06.3]} 60... Kd1 {[%clk 0:00:05.6]} 61.
Qb3+ {[%clk 0:00:06.4]} 61... Kc1 {[%clk 0:00:05.4]} 62. Qc3+ {[%clk 0:00:06.5]}
62... Kb1 {[%clk 0:00:05.2]} 63. Ke2 {[%clk 0:00:06.6]} 63... Ka1 {[%clk
0:00:05.6]} 1-0